[Event "*** SCC Grand Prix: Titled Tuesday Blitz"]
[Site "Chess.com"]
[Date "2020.06.02"]
[Round "4"]
[White "Azatic"]
[Black "Sethu0025"]
[Result "0-1"]
[WhiteElo "2436"]
[BlackElo "2789"]
[TimeControl "180+1"]
[EndTime "10:41:10 PDT"]
[Termination "Sethu0025 won by resignation"]

1. e4 {[%clk 0:03:00.9]} 1... c5 {[%clk 0:02:59.7]} 2. Nf3 {[%clk 0:03:01.2]}
2... d6 {[%clk 0:03:00.4]} 3. d4 {[%clk 0:03:01.7]} 3... cxd4 {[%clk 0:03:01.3]}
4. Nxd4 {[%clk 0:03:02.6]} 4... Nf6 {[%clk 0:03:02.2]} 5. Nc3 {[%clk 0:03:02.8]}
5... Nc6 {[%clk 0:03:03]} 6. Be2 {[%clk 0:03:01.5]} 6... e6 {[%clk 0:03:02.6]}
7. O-O {[%clk 0:03:01.1]} 7... Be7 {[%clk 0:03:03.3]} 8. Be3 {[%clk 0:03:01.1]}
8... O-O {[%clk 0:03:03.8]} 9. f4 {[%clk 0:03:01.7]} 9... Qc7 {[%clk 0:03:03.8]}
10. Qe1 {[%clk 0:03:01.6]} 10... a6 {[%clk 0:03:02.3]} 11. Qg3 {[%clk
0:02:53.6]} 11... Nxd4 {[%clk 0:03:02.4]} 12. Bxd4 {[%clk 0:02:54.5]} 12... b5
{[%clk 0:03:03.3]} 13. a3 {[%clk 0:02:54]} 13... Bb7 {[%clk 0:03:03.6]} 14. Bd3
{[%clk 0:02:54.3]} 14... Rad8 {[%clk 0:02:56.5]} 15. Rae1 {[%clk 0:02:47.3]}
15... Rd7 {[%clk 0:02:56.4]} 16. Kh1 {[%clk 0:02:46.4]} 16... Bc6 {[%clk
0:02:49.9]} 17. Qh3 {[%clk 0:02:43.8]} 17... g6 {[%clk 0:02:40.2]} 18. f5 {[%clk
0:02:39.2]} 18... e5 {[%clk 0:02:39.3]} 19. Be3 {[%clk 0:02:33.3]} 19... Qb7
{[%clk 0:02:38.5]} 20. Bh6 {[%clk 0:02:30.1]} 20... Re8 {[%clk 0:02:34.2]} 21.
fxg6 {[%clk 0:02:29.1]} 21... hxg6 {[%clk 0:02:34.2]} 22. Rf2 {[%clk 0:01:53.3]}
22... Nh7 {[%clk 0:02:22.6]} 23. Ref1 {[%clk 0:01:46.2]} 23... Bd8 {[%clk
0:02:11]} 24. Qg4 {[%clk 0:01:28.3]} 24... Bb6 {[%clk 0:02:03.2]} 25. Rf3 {[%clk
0:01:04.3]} 25... Bd8 {[%clk 0:01:59.3]} 26. Nd5 {[%clk 0:00:48.8]} 26... Kh8
{[%clk 0:01:46.8]} 27. c4 {[%clk 0:00:44.3]} 27... Bxd5 {[%clk 0:01:39.3]} 28.
cxd5 {[%clk 0:00:24.8]} 28... Rg8 {[%clk 0:01:36.5]} 29. Bd2 {[%clk 0:00:18.7]}
29... Rc7 {[%clk 0:01:27.9]} 30. Rh3 {[%clk 0:00:18.4]} 30... Rg7 {[%clk
0:01:20.9]} 31. Qf3 {[%clk 0:00:18]} 31... Kg8 {[%clk 0:01:08.9]} 32. Qe3 {[%clk
0:00:18]} 32... Bg5 {[%clk 0:01:07.8]} 33. Qe2 {[%clk 0:00:13.3]} 33... Bxd2
{[%clk 0:01:07.7]} 34. Qxd2 {[%clk 0:00:14.2]} 34... Qc8 {[%clk 0:01:06.7]} 35.
Rhf3 {[%clk 0:00:13.8]} 35... Qd8 {[%clk 0:00:57.2]} 36. h3 {[%clk 0:00:13.6]}
36... Rc8 {[%clk 0:00:49.3]} 37. Qb4 {[%clk 0:00:12.2]} 37... Ng5 {[%clk
0:00:48.4]} 38. R3f2 {[%clk 0:00:12.2]} 38... Nh7 {[%clk 0:00:47.8]} 39. a4
{[%clk 0:00:11.8]} 39... bxa4 {[%clk 0:00:47.2]} 40. Qxa4 {[%clk 0:00:12.7]}
40... a5 {[%clk 0:00:47.7]} 41. Bb5 {[%clk 0:00:10.5]} 41... Nf8 {[%clk
0:00:44.6]} 42. Bc6 {[%clk 0:00:10.5]} 42... Rb8 {[%clk 0:00:44.8]} 43. Rc2
{[%clk 0:00:08.5]} 43... Rb4 {[%clk 0:00:44.8]} 44. Qa3 {[%clk 0:00:07.2]} 44...
Rxe4 {[%clk 0:00:44.9]} 45. Ra1 {[%clk 0:00:04.6]} 45... Rh7 {[%clk 0:00:37.3]}
46. Rcc1 {[%clk 0:00:05]} 46... Re2 {[%clk 0:00:36]} 47. Rf1 {[%clk 0:00:05.1]}
47... Qg5 {[%clk 0:00:35.4]} 48. Qf3 {[%clk 0:00:04.8]} 48... Re3 {[%clk
0:00:34.4]} 49. Qf2 {[%clk 0:00:02.5]} 49... Rexh3+ {[%clk 0:00:34.5]} 50. gxh3
{[%clk 0:00:03.4]} 50... Rxh3+ {[%clk 0:00:35.2]} 51. Qh2 {[%clk 0:00:04.3]}
51... Rxh2+ {[%clk 0:00:34.8]} 52. Kxh2 {[%clk 0:00:05.2]} 52... Kg7 {[%clk
0:00:34.7]} 53. Ra3 {[%clk 0:00:04.9]} 53... Qd2+ {[%clk 0:00:34.1]} 54. Kg3
{[%clk 0:00:05.3]} 54... Qxb2 {[%clk 0:00:34]} 55. Raf3 {[%clk 0:00:05.3]} 55...
f5 {[%clk 0:00:33.8]} 56. R3f2 {[%clk 0:00:06.2]} 56... Qc3+ {[%clk 0:00:33.4]}
57. Kg2 {[%clk 0:00:07.1]} 57... e4 {[%clk 0:00:33.3]} 58. Rb1 {[%clk
0:00:07.4]} 58... Kf6 {[%clk 0:00:32]} 59. Rb8 {[%clk 0:00:06.2]} 59... Nh7
{[%clk 0:00:30.9]} 60. Rd8 {[%clk 0:00:06.6]} 60... Qc5 {[%clk 0:00:30.1]} 61.
Rb2 {[%clk 0:00:05.9]} 61... Kg5 {[%clk 0:00:28.5]} 62. Rb7 {[%clk 0:00:06.1]}
62... Nf6 {[%clk 0:00:28]} 63. Rb2 {[%clk 0:00:07]} 63... e3 {[%clk 0:00:27.7]}
64. Re2 {[%clk 0:00:07]} 64... Qd4 {[%clk 0:00:25.7]} 65. Rh8 {[%clk 0:00:06.9]}
65... Ng4 {[%clk 0:00:24.8]} 66. Rh3 {[%clk 0:00:06.1]} 66... Qe4+ {[%clk
0:00:24.9]} 67. Kg1 {[%clk 0:00:06.4]} 67... f4 {[%clk 0:00:24.8]} 68. Bd7
{[%clk 0:00:05.8]} 68... f3 {[%clk 0:00:24]} 69. Rb2 {[%clk 0:00:05.5]} 69... e2
{[%clk 0:00:23.5]} 70. Bxg4 {[%clk 0:00:03]} 70... e1=Q+ {[%clk 0:00:23.3]} 71.
Kh2 {[%clk 0:00:03.9]} 71... Qxg4 {[%clk 0:00:22.7]} 0-1

[Event "*** SCC Grand Prix: Titled Tuesday Blitz"]
[Site "Chess.com"]
[Date "2020.06.02"]
[Round "4"]
[White "Iljushin_Alexey"]
[Black "David_Paravyan"]
[Result "0-1"]
[WhiteElo "2663"]
[BlackElo "2974"]
[TimeControl "180+1"]
[EndTime "10:41:12 PDT"]
[Termination "David_Paravyan won by resignation"]

1. d4 {[%clk 0:03:00.9]} 1... Nf6 {[%clk 0:02:56.5]} 2. c4 {[%clk 0:03:01.1]}
2... e6 {[%clk 0:02:54.2]} 3. Nc3 {[%clk 0:03:00.8]} 3... Bb4 {[%clk 0:02:53.8]}
4. e3 {[%clk 0:03:01.4]} 4... b6 {[%clk 0:02:50.6]} 5. Ne2 {[%clk 0:03:00.2]}
5... Bb7 {[%clk 0:02:50.5]} 6. a3 {[%clk 0:02:59.5]} 6... Bf8 {[%clk 0:02:51.1]}
7. Nf4 {[%clk 0:02:45.4]} 7... g6 {[%clk 0:02:46.9]} 8. h4 {[%clk 0:02:41.3]}
8... h5 {[%clk 0:02:38.7]} 9. Be2 {[%clk 0:02:40.6]} 9... Bh6 {[%clk 0:02:37.3]}
10. Bf3 {[%clk 0:02:40]} 10... Bxf3 {[%clk 0:02:14.5]} 11. Qxf3 {[%clk 0:02:39]}
11... Nc6 {[%clk 0:02:15]} 12. b4 {[%clk 0:02:17]} 12... Ng4 {[%clk 0:02:10]}
13. Nfe2 {[%clk 0:02:02.8]} 13... O-O {[%clk 0:02:04.5]} 14. Bb2 {[%clk
0:02:00.1]} 14... a6 {[%clk 0:01:26.6]} 15. g3 {[%clk 0:01:59.6]} 15... Bg7
{[%clk 0:01:21.3]} 16. Qe4 {[%clk 0:01:37.8]} 16... f5 {[%clk 0:01:17.6]} 17.
Qc2 {[%clk 0:01:35]} 17... e5 {[%clk 0:01:15.6]} 18. d5 {[%clk 0:01:29.8]} 18...
Ne7 {[%clk 0:01:15.8]} 19. Qd2 {[%clk 0:01:28.5]} 19... d6 {[%clk 0:01:15.4]}
20. f3 {[%clk 0:01:27.3]} 20... Nf6 {[%clk 0:01:15.3]} 21. O-O-O {[%clk
0:01:17.8]} 21... b5 {[%clk 0:01:08.7]} 22. cxb5 {[%clk 0:01:14.7]} 22... axb5
{[%clk 0:01:09.6]} 23. Kb1 {[%clk 0:01:15]} 23... Bh6 {[%clk 0:01:07.7]} 24. Qd3
{[%clk 0:01:12.7]} 24... Qe8 {[%clk 0:00:45.8]} 25. Rhf1 {[%clk 0:01:00.3]}
25... Rb8 {[%clk 0:00:34.5]} 26. Ba1 {[%clk 0:00:56.5]} 26... Kh7 {[%clk
0:00:34.4]} 27. Bb2 {[%clk 0:00:56.3]} 27... Nc8 {[%clk 0:00:28.4]} 28. e4
{[%clk 0:00:52.7]} 28... Qd7 {[%clk 0:00:24]} 29. exf5 {[%clk 0:00:46.1]} 29...
Qxf5 {[%clk 0:00:22.9]} 30. Qxf5 {[%clk 0:00:42.9]} 30... gxf5 {[%clk
0:00:23.8]} 31. f4 {[%clk 0:00:43]} 31... Nb6 {[%clk 0:00:15.8]} 32. fxe5 {[%clk
0:00:42.2]} 32... Ng4 {[%clk 0:00:16.4]} 33. e6 {[%clk 0:00:41]} 33... Ne3
{[%clk 0:00:16.6]} 34. Nd4 {[%clk 0:00:37.9]} 34... Nbc4 {[%clk 0:00:07.4]} 35.
Nce2 {[%clk 0:00:35.3]} 35... Bg7 {[%clk 0:00:06.5]} 36. Bc1 {[%clk 0:00:33.5]}
36... Nxf1 {[%clk 0:00:03]} 37. Rxf1 {[%clk 0:00:33.6]} 37... Nb6 {[%clk
0:00:03.4]} 38. e7 {[%clk 0:00:31.4]} 38... Rfe8 {[%clk 0:00:02.7]} 39. Nxf5
{[%clk 0:00:31.5]} 39... Nxd5 {[%clk 0:00:03.1]} 40. Bg5 {[%clk 0:00:28.6]}
40... Be5 {[%clk 0:00:03.4]} 41. Nf4 {[%clk 0:00:27.5]} 41... Nc3+ {[%clk
0:00:03]} 42. Kc2 {[%clk 0:00:27]} 42... Ne4 {[%clk 0:00:03.7]} 43. Nd5 {[%clk
0:00:24.6]} 43... Nxg5 {[%clk 0:00:02.7]} 44. hxg5 {[%clk 0:00:24.6]} 44... Kg6
{[%clk 0:00:03.3]} 45. Kd3 {[%clk 0:00:23]} 45... c6 {[%clk 0:00:01.3]} 46. Nc7
{[%clk 0:00:22.5]} 46... Kxg5 {[%clk 0:00:01.6]} 47. Nxe8 {[%clk 0:00:22.2]}
47... Rxe8 {[%clk 0:00:02.5]} 48. Ke4 {[%clk 0:00:21.7]} 48... Bf6 {[%clk
0:00:02.2]} 49. Kd3 {[%clk 0:00:20.5]} 49... Bxe7 {[%clk 0:00:01.9]} 50. Nd4
{[%clk 0:00:21.2]} 50... c5 {[%clk 0:00:01.6]} 51. Nf3+ {[%clk 0:00:20.3]} 51...
Kg6 {[%clk 0:00:01.7]} 52. Re1 {[%clk 0:00:19]} 52... Kf7 {[%clk 0:00:02.3]} 53.
bxc5 {[%clk 0:00:17.4]} 53... dxc5 {[%clk 0:00:03.2]} 54. Rb1 {[%clk 0:00:16.8]}
54... Ra8 {[%clk 0:00:03]} 55. Ne5+ {[%clk 0:00:16.7]} 55... Ke6 {[%clk
0:00:02.7]} 56. Nc6 {[%clk 0:00:16.7]} 56... Rxa3+ {[%clk 0:00:03.1]} 57. Ke4
{[%clk 0:00:17.4]} 57... Ra4+ {[%clk 0:00:03.4]} 58. Kf3 {[%clk 0:00:17.8]}
58... Ra3+ {[%clk 0:00:03.5]} 59. Ke4 {[%clk 0:00:17.2]} 59... b4 {[%clk
0:00:03.3]} 60. Nxe7 {[%clk 0:00:16.4]} 60... Kxe7 {[%clk 0:00:04.2]} 61. Kd5
{[%clk 0:00:16.9]} 61... Rc3 {[%clk 0:00:04.4]} 62. Re1+ {[%clk 0:00:17.6]}
62... Kf6 {[%clk 0:00:04.9]} 63. Re6+ {[%clk 0:00:17.6]} 63... Kg5 {[%clk
0:00:05.1]} 64. Rb6 {[%clk 0:00:17.6]} 64... Kg4 {[%clk 0:00:04.9]} 65. Rg6+
{[%clk 0:00:18.3]} 65... Kf5 {[%clk 0:00:05]} 66. Rh6 {[%clk 0:00:18.4]} 66...
Kg5 {[%clk 0:00:05.2]} 67. Rh7 {[%clk 0:00:18.7]} 67... b3 {[%clk 0:00:05.3]}
68. Rb7 {[%clk 0:00:18.2]} 68... c4 {[%clk 0:00:05.5]} 69. Rh7 {[%clk
0:00:17.9]} 69... b2 {[%clk 0:00:05]} 70. Rb7 {[%clk 0:00:17]} 70... Rb3 {[%clk
0:00:05.4]} 0-1

[Event "*** SCC Grand Prix: Titled Tuesday Blitz"]
[Site "Chess.com"]
[Date "2020.06.02"]
[Round "4"]
[White "umngqusho"]
[Black "1stSecond"]
[Result "0-1"]
[WhiteElo "2500"]
[BlackElo "2711"]
[TimeControl "180+1"]
[EndTime "10:41:23 PDT"]
[Termination "1stSecond won on time"]

1. e4 {[%clk 0:03:00.9]} 1... c5 {[%clk 0:02:59.9]} 2. Nf3 {[%clk 0:03:00.5]}
2... Nc6 {[%clk 0:03:00.5]} 3. d4 {[%clk 0:02:58.6]} 3... cxd4 {[%clk
0:03:00.5]} 4. Nxd4 {[%clk 0:02:59.5]} 4... e6 {[%clk 0:03:01.2]} 5. Nc3 {[%clk
0:02:58.6]} 5... Qc7 {[%clk 0:03:01.5]} 6. Be2 {[%clk 0:02:58.1]} 6... Nf6
{[%clk 0:03:01.4]} 7. O-O {[%clk 0:02:57.4]} 7... a6 {[%clk 0:02:59.5]} 8. Be3
{[%clk 0:02:56.7]} 8... Bb4 {[%clk 0:02:58.3]} 9. Na4 {[%clk 0:02:56.3]} 9...
Be7 {[%clk 0:02:58.2]} 10. c4 {[%clk 0:02:55.3]} 10... Nxe4 {[%clk 0:02:54.3]}
11. c5 {[%clk 0:02:51]} 11... O-O {[%clk 0:02:52]} 12. Rc1 {[%clk 0:02:47.7]}
12... Rd8 {[%clk 0:02:35.9]} 13. Bf3 {[%clk 0:02:35.3]} 13... Ng5 {[%clk
0:02:21.3]} 14. Qb3 {[%clk 0:02:09.5]} 14... Bf6 {[%clk 0:02:16.5]} 15. Rfd1
{[%clk 0:01:51.7]} 15... Nxd4 {[%clk 0:01:58.3]} 16. Bxd4 {[%clk 0:01:50.5]}
16... Bxd4 {[%clk 0:01:54.9]} 17. Rxd4 {[%clk 0:01:49.8]} 17... Nxf3+ {[%clk
0:01:47.8]} 18. Qxf3 {[%clk 0:01:48.2]} 18... d5 {[%clk 0:01:48.4]} 19. Nb6
{[%clk 0:01:41.2]} 19... Rb8 {[%clk 0:01:48.1]} 20. Qg3 {[%clk 0:01:33]} 20...
Qxg3 {[%clk 0:01:46.8]} 21. hxg3 {[%clk 0:01:32.9]} 21... Bd7 {[%clk 0:01:46.9]}
22. f4 {[%clk 0:01:28.3]} 22... Bc6 {[%clk 0:01:46.2]} 23. b4 {[%clk 0:01:22]}
23... f6 {[%clk 0:01:45.9]} 24. Re1 {[%clk 0:01:21]} 24... Kf7 {[%clk 0:01:46]}
25. a4 {[%clk 0:01:19.5]} 25... Re8 {[%clk 0:01:44.8]} 26. Rb1 {[%clk
0:01:11.4]} 26... e5 {[%clk 0:01:33.9]} 27. Rd2 {[%clk 0:00:52.7]} 27... d4
{[%clk 0:01:21.5]} 28. fxe5 {[%clk 0:00:52.5]} 28... fxe5 {[%clk 0:01:21.2]} 29.
b5 {[%clk 0:00:52.6]} 29... axb5 {[%clk 0:01:21.1]} 30. axb5 {[%clk 0:00:53.5]}
30... Be4 {[%clk 0:01:21.7]} 31. Re1 {[%clk 0:00:52.2]} 31... Bf5 {[%clk
0:01:08.2]} 32. Nc4 {[%clk 0:00:52]} 32... Kf6 {[%clk 0:00:29.7]} 33. Rf2 {[%clk
0:00:50.2]} 33... Kg5 {[%clk 0:00:18.9]} 34. Nd6 {[%clk 0:00:47.6]} 34... Bg6
{[%clk 0:00:10.9]} 35. Nxe8 {[%clk 0:00:41.9]} 35... Rxe8 {[%clk 0:00:11.8]} 36.
c6 {[%clk 0:00:37.7]} 36... bxc6 {[%clk 0:00:12.7]} 37. bxc6 {[%clk 0:00:38.6]}
37... e4 {[%clk 0:00:12.5]} 38. Rd2 {[%clk 0:00:32.3]} 38... d3 {[%clk
0:00:11.9]} 39. Kf2 {[%clk 0:00:32.2]} 39... Re6 {[%clk 0:00:04.4]} 40. Rxd3
{[%clk 0:00:26.1]} 40... Rf6+ {[%clk 0:00:03.6]} 41. Rf3 {[%clk 0:00:23.1]}
41... exf3 {[%clk 0:00:04]} 42. Re5+ {[%clk 0:00:18]} 42... Kh6 {[%clk
0:00:03.9]} 43. gxf3 {[%clk 0:00:17.5]} 43... Rxc6 {[%clk 0:00:03.9]} 44. g4
{[%clk 0:00:17.7]} 44... Rc2+ {[%clk 0:00:04.6]} 45. Kg3 {[%clk 0:00:17.8]}
45... Rc6 {[%clk 0:00:04.4]} 46. Kh4 {[%clk 0:00:16.5]} 46... Bf7 {[%clk
0:00:04.6]} 47. f4 {[%clk 0:00:14.7]} 47... g6 {[%clk 0:00:04.4]} 48. Re7 {[%clk
0:00:14.2]} 48... Kg7 {[%clk 0:00:04.7]} 49. Kg5 {[%clk 0:00:13.6]} 49... Rf6
{[%clk 0:00:03.4]} 50. f5 {[%clk 0:00:12.7]} 50... h6+ {[%clk 0:00:03.5]} 51.
Kf4 {[%clk 0:00:12.8]} 51... gxf5 {[%clk 0:00:03.9]} 52. gxf5 {[%clk 0:00:12.7]}
52... Kf8 {[%clk 0:00:04.3]} 53. Ra7 {[%clk 0:00:11.5]} 53... Bg6 {[%clk
0:00:03.9]} 54. Ra8+ {[%clk 0:00:10.2]} 54... Kg7 {[%clk 0:00:04.1]} 55. Ra7+
{[%clk 0:00:10.2]} 55... Rf7 {[%clk 0:00:04.1]} 56. Ra5 {[%clk 0:00:09.6]} 56...
Bh7 {[%clk 0:00:03.6]} 57. Rb5 {[%clk 0:00:08.9]} 57... Bg8 {[%clk 0:00:02.1]}
58. Rb6 {[%clk 0:00:08.5]} 58... Rc7 {[%clk 0:00:02.1]} 59. Rg6+ {[%clk
0:00:08.4]} 59... Kh7 {[%clk 0:00:02.5]} 60. Rd6 {[%clk 0:00:07.8]} 60... Bf7
{[%clk 0:00:03]} 61. Ke5 {[%clk 0:00:07.5]} 61... Kg7 {[%clk 0:00:03.2]} 62. Kf4
{[%clk 0:00:05.3]} 62... Rc4+ {[%clk 0:00:03.5]} 63. Ke5 {[%clk 0:00:05.1]}
63... h5 {[%clk 0:00:03.4]} 64. Rd8 {[%clk 0:00:04.3]} 64... h4 {[%clk
0:00:03.6]} 65. Rd3 {[%clk 0:00:02.9]} 65... Rg4 {[%clk 0:00:03.3]} 0-1

[Event "*** SCC Grand Prix: Titled Tuesday Blitz"]
[Site "Chess.com"]
[Date "2020.06.02"]
[Round "4"]
[White "platy3"]
[Black "BilodeauA"]
[Result "1-0"]
[WhiteElo "2738"]
[BlackElo "2892"]
[TimeControl "180+1"]
[EndTime "10:41:25 PDT"]
[Termination "platy3 won on time"]

1. e4 {[%clk 0:02:58.9]} 1... e5 {[%clk 0:02:58.4]} 2. Nf3 {[%clk 0:02:58.6]}
2... Nc6 {[%clk 0:02:59.1]} 3. Bb5 {[%clk 0:02:57.1]} 3... a6 {[%clk 0:02:59.6]}
4. Ba4 {[%clk 0:02:56.6]} 4... d6 {[%clk 0:03:00.2]} 5. O-O {[%clk 0:02:46.5]}
5... Bd7 {[%clk 0:03:00.1]} 6. d4 {[%clk 0:02:40.3]} 6... b5 {[%clk 0:02:59.2]}
7. Bb3 {[%clk 0:02:39.8]} 7... Nxd4 {[%clk 0:02:59.9]} 8. Nxd4 {[%clk
0:02:39.1]} 8... exd4 {[%clk 0:03:00.8]} 9. c3 {[%clk 0:02:13]} 9... dxc3 {[%clk
0:03:00.1]} 10. Qh5 {[%clk 0:02:06.5]} 10... Qe7 {[%clk 0:02:59.8]} 11. Nxc3
{[%clk 0:02:01.4]} 11... Nf6 {[%clk 0:03:00.3]} 12. Qf3 {[%clk 0:01:58.5]} 12...
c6 {[%clk 0:02:57.7]} 13. Bf4 {[%clk 0:01:52.1]} 13... Ng4 {[%clk 0:02:57.3]}
14. Rad1 {[%clk 0:01:42.9]} 14... Ne5 {[%clk 0:02:57]} 15. Qe3 {[%clk
0:01:39.7]} 15... Qd8 {[%clk 0:02:04.7]} 16. Bxe5 {[%clk 0:01:28]} 16... dxe5
{[%clk 0:02:03.7]} 17. f4 {[%clk 0:01:28.6]} 17... Qc7 {[%clk 0:01:36.3]} 18.
fxe5 {[%clk 0:01:25.5]} 18... Be6 {[%clk 0:01:36.8]} 19. Bxe6 {[%clk 0:01:18.8]}
19... fxe6 {[%clk 0:01:37.7]} 20. Qf3 {[%clk 0:00:40]} 20... Bc5+ {[%clk
0:01:33.2]} 21. Kh1 {[%clk 0:00:40.1]} 21... Rd8 {[%clk 0:01:14.4]} 22. Rxd8+
{[%clk 0:00:34.7]} 22... Kxd8 {[%clk 0:01:15.3]} 23. Qg3 {[%clk 0:00:27.8]}
23... Kc8 {[%clk 0:01:06.6]} 24. Ne2 {[%clk 0:00:28]} 24... Kb7 {[%clk
0:01:03.3]} 25. Qc3 {[%clk 0:00:25.3]} 25... Bb6 {[%clk 0:00:50.5]} 26. h3
{[%clk 0:00:12.8]} 26... Rd8 {[%clk 0:00:49.8]} 27. Nf4 {[%clk 0:00:09.8]} 27...
Qf7 {[%clk 0:00:41.5]} 28. Qb3 {[%clk 0:00:07.4]} 28... Rf8 {[%clk 0:00:37.2]}
29. Rf3 {[%clk 0:00:07.2]} 29... Re8 {[%clk 0:00:31.5]} 30. Nd5 {[%clk
0:00:04.9]} 30... Qd7 {[%clk 0:00:31]} 31. Nxb6 {[%clk 0:00:03.4]} 31... Kxb6
{[%clk 0:00:31.9]} 32. Qe3+ {[%clk 0:00:03.2]} 32... c5 {[%clk 0:00:17.2]} 33.
b4 {[%clk 0:00:03.2]} 33... Qc7 {[%clk 0:00:14.2]} 34. bxc5+ {[%clk 0:00:02.1]}
34... Qxc5 {[%clk 0:00:15.1]} 35. Qf4 {[%clk 0:00:02.7]} 35... b4 {[%clk
0:00:09.4]} 36. Qf7 {[%clk 0:00:02.8]} 36... Re7 {[%clk 0:00:09.5]} 37. Qf8
{[%clk 0:00:03.2]} 37... Rd7 {[%clk 0:00:04.2]} 38. Qb8+ {[%clk 0:00:02.3]}
38... Ka5 {[%clk 0:00:04.3]} 39. Qe8 {[%clk 0:00:02.5]} 39... Rd1+ {[%clk
0:00:03.5]} 40. Kh2 {[%clk 0:00:03.1]} 40... Qc1 {[%clk 0:00:04.1]} 41. Kg3
{[%clk 0:00:01.6]} 41... g6 {[%clk 0:00:03.4]} 42. Qe7 {[%clk 0:00:01.5]} 42...
h5 {[%clk 0:00:02.5]} 43. Qxe6 {[%clk 0:00:01.7]} 43... Qg5+ {[%clk 0:00:02.6]}
44. Kf2 {[%clk 0:00:02.2]} 44... Qd2+ {[%clk 0:00:02.3]} 45. Kg3 {[%clk
0:00:02.4]} 45... Qe1+ {[%clk 0:00:02.9]} 46. Kf4 {[%clk 0:00:02.5]} 46... Qd2+
{[%clk 0:00:02.6]} 47. Kg3 {[%clk 0:00:02.9]} 47... g5 {[%clk 0:00:02.7]} 48.
Qd5+ {[%clk 0:00:02.6]} 48... Qxd5 {[%clk 0:00:02.9]} 49. exd5 {[%clk
0:00:03.5]} 49... Rxd5 {[%clk 0:00:03.6]} 50. Rf5 {[%clk 0:00:04.2]} 50... Ka4
{[%clk 0:00:03.2]} 51. Rxg5 {[%clk 0:00:04.4]} 51... Ka3 {[%clk 0:00:03.8]} 52.
Kh4 {[%clk 0:00:04.9]} 52... Kxa2 {[%clk 0:00:04]} 53. e6 {[%clk 0:00:05.6]}
53... Rd4+ {[%clk 0:00:04.5]} 54. Kxh5 {[%clk 0:00:05.8]} 54... Re4 {[%clk
0:00:03.6]} 55. Rg4 {[%clk 0:00:04.9]} 55... Re5+ {[%clk 0:00:03]} 56. Kh4
{[%clk 0:00:05.4]} 56... b3 {[%clk 0:00:03.2]} 57. Ra4+ {[%clk 0:00:05.7]} 57...
Kb1 {[%clk 0:00:02.7]} 58. Rxa6 {[%clk 0:00:06.5]} 58... b2 {[%clk 0:00:03.4]}
59. Rb6 {[%clk 0:00:06.9]} 59... Kc1 {[%clk 0:00:03.6]} 60. Rc6+ {[%clk
0:00:05.7]} 60... Kd2 {[%clk 0:00:03.4]} 61. Rb6 {[%clk 0:00:05.8]} 61... Kc3
{[%clk 0:00:04]} 62. Rxb2 {[%clk 0:00:02.4]} 62... Kxb2 {[%clk 0:00:03.9]} 63.
g4 {[%clk 0:00:02.8]} 63... Kc3 {[%clk 0:00:04.2]} 64. g5 {[%clk 0:00:02.7]}
64... Kd4 {[%clk 0:00:03]} 65. Kh5 {[%clk 0:00:03.3]} 65... Rxe6 {[%clk
0:00:03.2]} 66. g6 {[%clk 0:00:03]} 66... Ke5 {[%clk 0:00:03.8]} 67. g7 {[%clk
0:00:03.5]} 67... Re8 {[%clk 0:00:03.4]} 68. Kg6 {[%clk 0:00:03.9]} 68... Ke6
{[%clk 0:00:03.9]} 69. h4 {[%clk 0:00:04.3]} 69... Ra8 {[%clk 0:00:02.7]} 70. h5
{[%clk 0:00:05]} 70... Ke7 {[%clk 0:00:03.1]} 71. h6 {[%clk 0:00:04.5]} 71...
Ra6+ {[%clk 0:00:03.5]} 72. Kh7 {[%clk 0:00:04.5]} 72... Kf6 {[%clk 0:00:02]}
73. g8=Q {[%clk 0:00:04.2]} 73... Ra7+ {[%clk 0:00:02.7]} 74. Qg7+ {[%clk
0:00:04.6]} 1-0